fUSD/lending_fUSD_20260612
["ID","MTS","AMOUNT","RATE_DAILY","PERIOD"]
[424867744,1781217045000,-1203.59,0.00029174,14]
[424867758,1781217045000,-151.0,0.00029456,2]
[424867748,1781217045000,-1203.59,0.0002938,14]
[424867747,1781217045000,-150.0,0.00029372,2]
[424867746,1781217045000,-187.0,0.00029304,2]
[424867752,1781217045000,-599.60298507,0.00029455,2]
[424867760,1781217045000,-237.83765567,0.00029511,7]
[424867750,1781217045000,-502.0,0.00029446,12]
[424867759,1781217045000,-1203.59,0.00029493,13]
[424867756,1781217045000,-1104.10242787,0.00029456,2]
[424867757,1781217045000,-209.40437684,0.00029456,2]
[424867754,1781217045000,-747.80937859,0.00029455,2]
[424867761,1781217045000,-518.02969124,0.00029513,7]
[424867753,1781217045000,-151.0,0.00029455,2]
[424867755,1781217045000,-152.26122567,0.00029456,2]
[424867749,1781217045000,-301.293,0.00029399,2]
[424867751,1781217045000,-1203.59,0.00029451,6]
[424867837,1781217046000,-151.0,0.0003013,7]
[424867826,1781217046000,-529.57325127,0.00030089,7]
[424867827,1781217046000,-1095.38748374,0.0003013,2]
[424867828,1781217046000,-14137.02812904,0.0003013,2]
[424867838,1781217046000,-205.87,0.00030137,5]
[424867829,1781217046000,-646.86723645,0.0003013,2]
[424867830,1781217046000,-205.70713865,0.0003013,2]
[424867834,1781217046000,-17171.9288112,0.0003013,7]
[424867825,1781217046000,-549.50118636,0.00030089,7]
[424867831,1781217046000,-480.62840678,0.0003013,2]
[424867835,1781217046000,-1920.06248016,0.0003013,2]
[424867845,1781217046000,-158.0,0.00030153,30]
[424867836,1781217046000,-30059.13045164,0.0003013,2]
[424867832,1781217046000,-302.73585079,0.0003013,2]
[424867840,1781217046000,-675.0,0.00030153,30]
[424867848,1781217046000,-153.0,0.00030153,30]
[424867849,1781217046000,-741.0,0.00030153,30]
[424867839,1781217046000,-264.72,0.00030137,30]
[424867841,1781217046000,-151.0,0.00030153,30]
[424867842,1781217046000,-151.0,0.00030153,30]
[424867843,1781217046000,-299.0,0.00030153,30]
[424867846,1781217046000,-155.0,0.00030153,30]
[424867824,1781217046000,-443.46921058,0.00030089,7]
[424867833,1781217046000,-12329.5723623,0.0003013,2]
[424867822,1781217046000,-383.21922643,0.00030089,2]
[424867795,1781217046000,-1591.375,0.0003,7]
[424867821,1781217046000,-185.56821878,0.00030089,7]
[424867844,1781217046000,-153.0,0.00030153,30]
[424867793,1781217046000,-3496.27,0.0003,120]
[424867804,1781217046000,-1690.50285853,0.00030054,2]
[424867802,1781217046000,-151.0,0.00030004,2]
[424867807,1781217046000,-587.14287567,0.00030088,7]
[424867805,1781217046000,-475.67531133,0.00030085,7]
[424867806,1781217046000,-690.70625499,0.00030088,7]
[424867797,1781217046000,-151.0,0.0003,7]
[424867796,1781217046000,-215.95576085,0.0003,7]
[424867798,1781217046000,-247.147394,0.0003,7]
[424867800,1781217046000,-217.15233878,0.00030004,2]
[424867823,1781217046000,-707.3853611,0.00030089,7]
[424867799,1781217046000,-1104.10242787,0.00030004,2]
[424867811,1781217046000,-245.19300757,0.00030089,7]
[424867815,1781217046000,-160.25063226,0.00030089,7]
[424867816,1781217046000,-154.05580023,0.00030089,7]
[424867813,1781217046000,-436.49734419,0.00030089,7]
[424867814,1781217046000,-228.88846479,0.00030089,7]
[424867812,1781217046000,-284.88636427,0.00030089,7]
[424867810,1781217046000,-390.13828225,0.00030089,7]
[424867817,1781217046000,-326.19699194,0.00030089,7]
[424867809,1781217046000,-696.32126467,0.00030088,7]
[424867820,1781217046000,-230.76624935,0.00030089,7]
[424867819,1781217046000,-407.24189612,0.00030089,7]
[424867808,1781217046000,-679.97064672,0.00030088,7]
[424867847,1781217046000,-153.0,0.00030153,30]
[424867818,1781217046000,-398.05419325,0.00030089,7]
[424867851,1781217046000,-481.0,0.00030153,30]
[424867885,1781217046000,-165.009137,0.00030687,7]
[424867887,1781217046000,-165.009137,0.00030687,7]
[424867886,1781217046000,-165.009137,0.00030687,7]
[424867882,1781217046000,-1451.861569,0.00030687,7]
[424867888,1781217046000,-165.009137,0.00030687,7]
[424867891,1781217046000,-1314.640837,0.00030687,7]
[424867890,1781217046000,-1314.640837,0.00030687,7]
[424867901,1781217046000,-433595.2622547,0.00030687,2]
[424867902,1781217046000,-158952.2451784,0.00030687,2]
[424867903,1781217046000,-1000.0,0.00030822,120]
[424867892,1781217046000,-1314.640837,0.00030687,7]
[424867880,1781217046000,-1451.861569,0.00030687,7]
[424867893,1781217046000,-151.0,0.00030687,7]
[424867900,1781217046000,-269240.08949065,0.00030687,7]
[424867896,1781217046000,-489.823937,0.00030687,7]
[424867904,1781217046000,-1000.0,0.00030822,120]
[424867906,1781217046000,-3496.27,0.00030822,120]
[424867907,1781217046000,-150.0,0.00030841,2]
[424867913,1781217046000,-400.0,0.00031,30]
[424867911,1781217046000,-400.0,0.00031,30]
[424867905,1781217046000,-989.0,0.00030822,120]
[424867909,1781217046000,-400.0,0.00031,30]
[424867908,1781217046000,-215.95576085,0.00031,30]
[424867850,1781217046000,-160.0,0.00030153,30]
[424867894,1781217046000,-489.823937,0.00030687,7]
[424867883,1781217046000,-1451.861569,0.00030687,7]
[424867898,1781217046000,-489.823937,0.00030687,7]
[424867884,1781217046000,-1451.861569,0.00030687,7]
[424867889,1781217046000,-1314.640837,0.00030687,7]
[424867852,1781217046000,-403.0,0.00030154,2]
[424867861,1781217046000,-150.0,0.00030459,30]
[424867854,1781217046000,-150.0,0.00030154,2]
[424867857,1781217046000,-150.0,0.00030185,2]
[424867853,1781217046000,-152.0,0.00030154,2]
[424867860,1781217046000,-302.0,0.00030459,30]
[424867856,1781217046000,-250.0,0.00030185,2]
[424867859,1781217046000,-502.0,0.000304,13]
[424867855,1781217046000,-154.0,0.00030154,30]
[424867863,1781217046000,-1104.10242787,0.00030552,2]
[424867862,1781217046000,-161.42491345,0.00030501,40]
[424867858,1781217046000,-425.6,0.00030239,2]
[424867873,1781217046000,-250.0,0.00030638,7]
[424867879,1781217046000,-884.23170138,0.00030664,7]
[424867874,1781217046000,-5662.0,0.00030644,10]
[424867878,1781217046000,-870.40158083,0.00030663,7]
[424867867,1781217046000,-151.0,0.00030552,2]
[424867872,1781217046000,-199.02,0.000306,7]
[424867869,1781217046000,-960.22612449,0.00030587,2]
[424867871,1781217046000,-1307.32542544,0.00030587,2]
[424867865,1781217046000,-225.18697532,0.00030552,2]
[424867875,1781217046000,-150.0,0.00030644,2]
[424867876,1781217046000,-863.38281873,0.00030663,7]
[424867877,1781217046000,-849.9633084,0.00030663,7]
[424867932,1781217047000,-153.0,0.00031153,30]
[424867931,1781217047000,-153.0,0.00031153,30]
[424867935,1781217047000,-481.0,0.00031153,30]
[424867940,1781217047000,-1227.0,0.00031185,2]
[424867934,1781217047000,-160.0,0.00031153,30]
[424867937,1781217047000,-154.0,0.00031154,30]
[424867941,1781217047000,-6076.0,0.00031185,2]
[424867939,1781217047000,-1274.0,0.00031185,2]
[424867938,1781217047000,-382.0,0.00031185,2]
[424867936,1781217047000,-151.0,0.00031154,7]
[424867953,1781217047000,-3496.27,0.00031644,120]
[424867942,1781217047000,-1000.0,0.000312,7]
[424867954,1781217047000,-150.0,0.00031644,120]
[424867943,1781217047000,-502.0,0.00031354,14]
[424867933,1781217047000,-741.0,0.00031153,30]
[424867920,1781217047000,-1104.10242787,0.000311,2]
[424867925,1781217047000,-151.0,0.00031153,30]
[424867955,1781217047000,-151.0,0.00031644,120]
[424867915,1781217047000,-400.0,0.00031,30]
[424867918,1781217047000,-187.0,0.00031027,2]
[424867916,1781217047000,-400.0,0.00031,30]
[424867917,1781217047000,-258.0,0.00031,30]
[424867919,1781217047000,-282.1,0.00031096,5]
[424867930,1781217047000,-155.0,0.00031153,30]
[424867929,1781217047000,-158.0,0.00031153,30]
[424867923,1781217047000,-152.91177246,0.00031115,2]
[424867921,1781217047000,-233.5188934,0.000311,2]
[424867922,1781217047000,-237.82,0.000311,4]
[424867924,1781217047000,-675.0,0.00031153,30]
[424867926,1781217047000,-151.0,0.00031153,30]
[424867927,1781217047000,-299.0,0.00031153,30]
[424867928,1781217047000,-153.0,0.00031153,30]
[424867944,1781217047000,-200.0,0.00031461,2]
[424867945,1781217047000,-1591.375,0.00031477,7]
[424867947,1781217047000,-193.0,0.00031507,30]
[424867974,1781217047000,-591.18178415,0.00032,120]
[424867973,1781217047000,-167.76592615,0.00032,120]
[424867968,1781217047000,-190.70801845,0.00032,120]
[424867971,1781217047000,-647.30106597,0.00032,120]
[424867972,1781217047000,-195.85483403,0.00032,120]
[424867970,1781217047000,-525.61997761,0.00032,120]
[424867969,1781217047000,-184.54162468,0.00032,120]
[424867976,1781217047000,-393.42300937,0.00032,120]
[424867975,1781217047000,-672.53195394,0.00032,120]
[424867979,1781217047000,-186.40658459,0.00032,120]
[424867978,1781217047000,-174.25490651,0.00032,120]
[424867982,1781217047000,-172.54293024,0.00032,120]
[424867981,1781217047000,-1180.26902809,0.00032,120]
[424867946,1781217047000,-264.72,0.00031507,30]
[424867977,1781217047000,-188.4317516,0.00032,120]
[424867967,1781217047000,-160.76412736,0.00032,120]
[424867980,1781217047000,-185.87068677,0.00032,120]
[424867966,1781217047000,-187.69831663,0.00032,120]
[424867965,1781217047000,-186.27637768,0.00032,120]
[424867949,1781217047000,-1019.95597007,0.00031524,7]
[424867951,1781217047000,-1061.07804166,0.00031526,7]
[424867948,1781217047000,-1036.05938248,0.00031524,7]
[424867956,1781217047000,-1104.10242787,0.00031648,2]
[424867959,1781217047000,-158.31,0.000317,7]
[424867950,1781217047000,-1044.481897,0.00031524,7]
[424867958,1781217047000,-205.09750593,0.00031648,40]
[424867963,1781217047000,-150.0,0.0003187,3]
[424867957,1781217047000,-242.15909246,0.00031648,2]
[424867964,1781217047000,-212.97669287,0.00032,120]
[424867952,1781217047000,-164.0,0.00031552,2]
[424867962,1781217047000,-8494.0,0.0003187,10]
[424867960,1781217047000,-192.1695424,0.00031753,2]
[424867961,1781217047000,-150.0,0.00031778,30]
[424868023,1781217048000,-1158.2401763,0.00032542,2]
[424868027,1781217048000,-572.14,0.00032558,2]
[424868017,1781217048000,-261.0,0.00032232,60]
[424868021,1781217048000,-150.0,0.00032383,2]
[424868024,1781217048000,-116863.9309896,0.00032542,2]
[424868022,1781217048000,-3496.27,0.00032466,120]
[424868016,1781217048000,-300.0,0.00032232,60]
[424868019,1781217048000,-37154.77266569,0.00032327,7]
[424868025,1781217048000,-573.27,0.00032558,2]
[424868020,1781217048000,-14431.56309174,0.00032327,7]
[424868015,1781217048000,-300.0,0.00032232,60]
[424868026,1781217048000,-573.23,0.00032558,2]
[424868018,1781217048000,-502.0,0.00032308,15]
[424868035,1781217048000,-5800.0,0.00032786,2]
[424868038,1781217048000,-5800.0,0.00032811,2]
[424868029,1781217048000,-151.0,0.00032564,2]
[424868031,1781217048000,-573.27,0.00032565,2]
[424868030,1781217048000,-185.09,0.00032565,2]
[424868032,1781217048000,-575.42,0.00032565,2]
[424868037,1781217048000,-5800.0,0.00032803,2]
[424868033,1781217048000,-1104.10242787,0.00032744,2]
[424868034,1781217048000,-260.4103811,0.00032744,2]
[424868036,1781217048000,-5800.0,0.00032794,2]
[424868039,1781217048000,-1208.73594622,0.00032817,7]
[424868041,1781217048000,-1218.56221317,0.00032817,7]
[424868042,1781217048000,-5800.0,0.0003282,2]
[424868014,1781217048000,-154.0,0.00032232,60]
[424868028,1781217048000,-346.51,0.00032559,2]
[424868010,1781217048000,-100000.0,0.00032232,90]
[424867992,1781217048000,-299.0,0.00032153,30]
[424868011,1781217048000,-100000.0,0.00032232,60]
[424867986,1781217048000,-256.15919192,0.00032,120]
[424867987,1781217048000,-283.44,0.00032055,5]
[424867985,1781217048000,-168.3978096,0.00032,120]
[424867984,1781217048000,-178.25990567,0.00032,120]
[424867983,1781217048000,-205.3976163,0.00032,120]
[424867988,1781217048000,-850.131069,0.00032066,7]
[424867997,1781217048000,-153.0,0.00032153,30]
[424867994,1781217048000,-158.0,0.00032153,30]
[424867998,1781217048000,-741.0,0.00032153,30]
[424867993,1781217048000,-153.0,0.00032153,30]
[424867990,1781217048000,-151.0,0.00032153,30]
[424867991,1781217048000,-151.0,0.00032153,30]
[424867995,1781217048000,-155.0,0.00032153,30]
[424867996,1781217048000,-153.0,0.00032153,30]
[424868000,1781217048000,-481.0,0.00032153,30]
[424867999,1781217048000,-160.0,0.00032153,30]
[424867989,1781217048000,-675.0,0.00032153,30]
[424868012,1781217048000,-150.0,0.00032232,60]
[424868004,1781217048000,-775.4783256,0.00032194,2]
[424868013,1781217048000,-228.0,0.00032232,60]
[424868002,1781217048000,-151.0,0.00032194,2]
[424868007,1781217048000,-425.6,0.0003221,5]
[424868001,1781217048000,-154.0,0.00032154,30]
[424868005,1781217048000,-1104.10242787,0.00032196,2]
[424868003,1781217048000,-621.78829552,0.00032194,2]
[424868008,1781217048000,-161.985143,0.00032229,7]
[424868009,1781217048000,-100000.0,0.00032232,120]
[424868006,1781217048000,-251.11897888,0.00032196,2]
[424868045,1781217048000,-5800.0,0.00032845,2]
[424868050,1781217048000,-157.611457,0.00032877,7]
[424868043,1781217048000,-5800.0,0.00032828,2]
[424868084,1781217048000,-157.635871,0.00032877,7]
[424868085,1781217048000,-151.0,0.00032877,7]
[424868075,1781217048000,-251.225547,0.00032877,7]
[424868083,1781217048000,-157.635871,0.00032877,7]
[424868086,1781217048000,-151.0,0.00032877,7]
[424868077,1781217048000,-157.635871,0.00032877,7]
[424868081,1781217048000,-157.635871,0.00032877,7]
[424868079,1781217048000,-157.635871,0.00032877,7]
[424868078,1781217048000,-157.635871,0.00032877,7]
[424868080,1781217048000,-157.635871,0.00032877,7]
[424868089,1781217048000,-151.0,0.00032877,7]
[424868091,1781217048000,-264.999239,0.00032877,7]
[424868087,1781217048000,-151.0,0.00032877,7]
[424868090,1781217048000,-151.0,0.00032877,7]
[424868094,1781217048000,-184.279738,0.00032877,7]
[424868093,1781217048000,-151.0,0.00032877,7]
[424868096,1781217048000,-264.999239,0.00032877,7]
[424868095,1781217048000,-264.999239,0.00032877,7]
[424868088,1781217048000,-151.0,0.00032877,7]
[424868097,1781217048000,-264.999239,0.00032877,7]
[424868092,1781217048000,-264.999239,0.00032877,7]
[424868099,1781217048000,-1570.0,0.00032877,30]
[424868102,1781217048000,-264.72,0.00032877,30]
[424868103,1781217048000,-407.0,0.00032955,2]
[424868100,1781217048000,-232.0,0.00032877,120]
[424868101,1781217048000,-756.821729,0.00032877,120]
[424868047,1781217048000,-5800.0,0.00032862,2]
[424868082,1781217048000,-157.635871,0.00032877,7]
[424868076,1781217048000,-251.225547,0.00032877,7]
[424868098,1781217048000,-264.999239,0.00032877,7]
[424868070,1781217048000,-251.225547,0.00032877,7]
[424868074,1781217048000,-151.0,0.00032877,7]
[424868049,1781217048000,-157.611457,0.00032877,7]
[424868040,1781217048000,-1189.94863175,0.00032817,7]
[424868048,1781217048000,-3666.42058131,0.0003287,2]
[424868051,1781217048000,-157.611457,0.00032877,7]
[424868046,1781217048000,-5800.0,0.00032854,2]
[424868053,1781217048000,-157.611457,0.00032877,7]
[424868062,1781217048000,-248.67532,0.00032877,7]
[424868061,1781217048000,-151.0,0.00032877,7]
[424868055,1781217048000,-157.611457,0.00032877,7]
[424868058,1781217048000,-151.0,0.00032877,7]
[424868054,1781217048000,-157.611457,0.00032877,7]
[424868063,1781217048000,-151.0,0.00032877,7]
[424868044,1781217048000,-5800.0,0.00032837,2]
[424868057,1781217048000,-151.0,0.00032877,7]
[424868056,1781217048000,-157.611457,0.00032877,7]
[424868072,1781217048000,-251.225547,0.00032877,7]
[424868071,1781217048000,-251.225547,0.00032877,7]
[424868073,1781217048000,-151.0,0.00032877,7]
[424868069,1781217048000,-251.225547,0.00032877,7]
[424868065,1781217048000,-151.0,0.00032877,7]
[424868064,1781217048000,-151.0,0.00032877,7]
[424868052,1781217048000,-157.611457,0.00032877,7]
[424868066,1781217048000,-151.0,0.00032877,7]
[424868060,1781217048000,-197.110996,0.00032877,7]
[424868068,1781217048000,-251.225547,0.00032877,7]
[424868059,1781217048000,-151.0,0.00032877,7]
[424868067,1781217048000,-251.225547,0.00032877,7]
[424868141,1781217049000,-200.0,0.00033163,10]
[424868125,1781217049000,-256.15919192,0.00033,120]
[424868123,1781217049000,-5189.999999,0.00033,30]
[424868129,1781217049000,-151.0,0.00033153,30]
[424868136,1781217049000,-153.0,0.00033153,30]
[424868137,1781217049000,-741.0,0.00033153,30]
[424868139,1781217049000,-481.0,0.00033153,30]
[424868143,1781217049000,-150.0,0.00033185,2]
[424868145,1781217049000,-3496.27,0.00033288,120]
[424868131,1781217049000,-299.0,0.00033153,30]
[424868126,1781217049000,-398.13,0.00033014,5]
[424868146,1781217049000,-1104.10242787,0.00033292,2]
[424868140,1781217049000,-154.0,0.00033154,30]
[424868138,1781217049000,-160.0,0.00033153,30]
[424868142,1781217049000,-740.531921,0.00033177,120]
[424868147,1781217049000,-270.0455652,0.00033292,2]
[424868148,1781217049000,-150.69,0.00033296,30]
[424868149,1781217049000,-174.87,0.00033296,30]
[424868156,1781217049000,-185.09,0.00033379,2]
[424868154,1781217049000,-573.23,0.00033379,2]
[424868130,1781217049000,-151.0,0.00033153,30]
[424868155,1781217049000,-575.42,0.00033379,2]
[424868144,1781217049000,-502.0,0.00033262,16]
[424868128,1781217049000,-675.0,0.00033153,30]
[424868112,1781217049000,-525.61997761,0.00033,120]
[424868133,1781217049000,-158.0,0.00033153,30]
[424868151,1781217049000,-158.31,0.000333,7]
[424868109,1781217049000,-160.76412736,0.00033,120]
[424868104,1781217049000,-407.0,0.00032955,2]
[424868108,1781217049000,-187.69831663,0.00033,120]
[424868107,1781217049000,-186.27637768,0.00033,120]
[424868105,1781217049000,-426.80374489,0.00032955,2]
[424868106,1781217049000,-212.97669287,0.00033,120]
[424868110,1781217049000,-190.70801845,0.00033,120]
[424868111,1781217049000,-184.54162468,0.00033,120]
[424868121,1781217049000,-172.54293024,0.00033,120]
[424868113,1781217049000,-647.30106597,0.00033,120]
[424868122,1781217049000,-62928.82277124,0.00033,2]
[424868118,1781217049000,-174.25490651,0.00033,120]
[424868115,1781217049000,-591.18178415,0.00033,120]
[424868119,1781217049000,-186.40658459,0.00033,120]
[424868117,1781217049000,-393.42300937,0.00033,120]
[424868120,1781217049000,-1180.26902809,0.00033,120]
[424868114,1781217049000,-195.85483403,0.00033,120]
[424868116,1781217049000,-672.53195394,0.00033,120]
[424868124,1781217049000,-2000.0,0.00033,2]
[424868132,1781217049000,-153.0,0.00033153,30]
[424868135,1781217049000,-153.0,0.00033153,30]
[424868134,1781217049000,-155.0,0.00033153,30]
[424868127,1781217049000,-1570.0,0.00033151,30]
[424868152,1781217049000,-231.21,0.00033369,2]
[424868153,1781217049000,-151.0,0.00033369,2]
[424868190,1781217049000,-644.05,0.00033387,2]
[424868182,1781217049000,-644.05,0.00033386,2]
[424868181,1781217049000,-644.06,0.00033386,2]
[424868189,1781217049000,-482.22,0.00033387,2]
[424868188,1781217049000,-482.22,0.00033387,2]
[424868183,1781217049000,-185.09,0.00033386,2]
[424868191,1781217049000,-396.13,0.00033387,2]
[424868192,1781217049000,-482.23,0.00033387,2]
[424868201,1781217049000,-482.22,0.00033387,2]
[424868193,1781217049000,-185.09,0.00033387,2]
[424868194,1781217049000,-575.42,0.00033387,2]
[424868185,1781217049000,-482.22,0.00033386,2]
[424868200,1781217049000,-396.12,0.00033387,2]
[424868198,1781217049000,-644.05,0.00033387,2]
[424868197,1781217049000,-396.12,0.00033387,2]
[424868195,1781217049000,-396.12,0.00033387,2]
[424868196,1781217049000,-644.05,0.00033387,2]
[424868202,1781217049000,-482.25,0.00033387,2]
[424868204,1781217049000,-11325.0,0.00033402,10]
[424868205,1781217049000,-170.0,0.00033402,3]
[424868203,1781217049000,-345.69,0.00033389,7]
[424868150,1781217049000,-237.82,0.000333,30]
[424868206,1781217049000,-1570.0,0.00033425,30]
[424868199,1781217049000,-185.09,0.00033387,2]
[424868187,1781217049000,-185.09,0.00033387,2]
[424868184,1781217049000,-396.12,0.00033386,2]
[424868180,1781217049000,-575.42,0.00033386,2]
[424868157,1781217049000,-185.1,0.00033379,2]
[424868159,1781217049000,-185.09,0.00033379,2]
[424868158,1781217049000,-396.12,0.00033379,2]
[424868161,1781217049000,-396.12,0.00033379,2]
[424868162,1781217049000,-575.42,0.00033379,2]
[424868164,1781217049000,-482.22,0.00033379,2]
[424868165,1781217049000,-185.09,0.00033386,2]
[424868186,1781217049000,-185.08,0.00033386,2]
[424868166,1781217049000,-252.09,0.00033386,2]
[424868167,1781217049000,-185.09,0.00033386,2]
[424868163,1781217049000,-185.09,0.00033379,2]
[424868169,1781217049000,-573.23,0.00033386,2]
[424868160,1781217049000,-396.12,0.00033379,2]
[424868177,1781217049000,-396.12,0.00033386,2]
[424868176,1781217049000,-482.22,0.00033386,2]
[424868178,1781217049000,-185.1,0.00033386,2]
[424868175,1781217049000,-573.23,0.00033386,2]
[424868168,1781217049000,-185.09,0.00033386,2]
[424868170,1781217049000,-185.09,0.00033386,2]
[424868171,1781217049000,-396.12,0.00033386,2]
[424868173,1781217049000,-185.09,0.00033386,2]
[424868179,1781217049000,-573.23,0.00033386,2]
[424868174,1781217049000,-482.22,0.00033386,2]
[424868172,1781217049000,-573.23,0.00033386,2]
[424868238,1781217050000,-1570.0,0.00033699,30]
[424868247,1781217050000,-186.27637768,0.000339,120]
[424868241,1781217050000,-1104.10242787,0.0003384,2]
[424868248,1781217050000,-187.69831663,0.000339,120]
[424868237,1781217050000,-152.5314,0.00033649,2]
[424868245,1781217050000,-25000.0,0.00033891,10]
[424868242,1781217050000,-280.03725111,0.0003384,2]
[424868243,1781217050000,-500.0,0.00033842,60]
[424868246,1781217050000,-212.97669287,0.000339,120]
[424868244,1781217050000,-342.14413463,0.00033842,60]
[424868239,1781217050000,-385.21502296,0.00033726,4]
[424868249,1781217050000,-190.70801845,0.000339,120]
[424868269,1781217050000,-151.0,0.00033972,7]
[424868252,1781217050000,-195.85483403,0.000339,120]
[424868254,1781217050000,-672.53195394,0.000339,120]
[424868251,1781217050000,-647.30106597,0.000339,120]
[424868253,1781217050000,-591.18178415,0.000339,120]
[424868255,1781217050000,-393.42300937,0.000339,120]
[424868256,1781217050000,-186.40658459,0.000339,120]
[424868259,1781217050000,-25000.0,0.000339,10]
[424868258,1781217050000,-400.0,0.000339,30]
[424868257,1781217050000,-1180.26902809,0.000339,120]
[424868267,1781217050000,-151.0,0.00033972,7]
[424868270,1781217050000,-376.78,0.00033973,5]
[424868236,1781217050000,-500.0,0.00033616,2]
[424868250,1781217050000,-525.61997761,0.000339,120]
[424868235,1781217050000,-2657.4031117,0.00033595,2]
[424868207,1781217050000,-150.33475,0.00033475,2]
[424868230,1781217050000,-264.999239,0.00033477,7]
[424868211,1781217050000,-1451.861569,0.00033477,7]
[424868213,1781217050000,-165.009137,0.00033477,7]
[424868209,1781217050000,-1451.861569,0.00033477,7]
[424868212,1781217050000,-1451.861569,0.00033477,7]
[424868210,1781217050000,-1451.861569,0.00033477,7]
[424868208,1781217050000,-724.463779,0.00033477,120]
[424868222,1781217050000,-151.0,0.00033477,7]
[424868215,1781217050000,-165.009137,0.00033477,7]
[424868223,1781217050000,-489.823937,0.00033477,7]
[424868218,1781217050000,-1314.640837,0.00033477,7]
[424868214,1781217050000,-165.009137,0.00033477,7]
[424868217,1781217050000,-1314.640837,0.00033477,7]
[424868224,1781217050000,-151.0,0.00033477,7]
[424868216,1781217050000,-165.009137,0.00033477,7]
[424868219,1781217050000,-1314.640837,0.00033477,7]
[424868221,1781217050000,-151.0,0.00033477,7]
[424868220,1781217050000,-1314.640837,0.00033477,7]
[424868225,1781217050000,-489.823937,0.00033477,7]
[424868226,1781217050000,-151.0,0.00033477,7]
[424868227,1781217050000,-489.823937,0.00033477,7]
[424868229,1781217050000,-264.999239,0.00033477,7]
[424868233,1781217050000,-4446.0,0.00033518,5]
[424868231,1781217050000,-400.0,0.00033496,2]
[424868232,1781217050000,-400.0,0.00033496,2]
[424868234,1781217050000,-3916.0,0.00033518,5]
[424868228,1781217050000,-264.999239,0.00033477,7]
[424868260,1781217050000,-256.15919192,0.000339,120]
[424868240,1781217050000,-756.128604,0.00033777,120]
[424868266,1781217050000,-157.611457,0.00033972,7]
[424868296,1781217050000,-153.0,0.00034153,30]
[424868298,1781217050000,-155.0,0.00034153,30]
[424868300,1781217050000,-153.0,0.00034153,30]
[424868304,1781217050000,-154.0,0.00034154,30]
[424868299,1781217050000,-153.0,0.00034153,30]
[424868305,1781217050000,-425.6,0.00034182,7]
[424868303,1781217050000,-481.0,0.00034153,30]
[424868301,1781217050000,-741.0,0.00034153,30]
[424868302,1781217050000,-160.0,0.00034153,30]
[424868297,1781217050000,-158.0,0.00034153,30]
[424868307,1781217050000,-1274.0,0.00034185,2]
[424868306,1781217050000,-382.0,0.00034185,2]
[424868290,1781217050000,-1000.0,0.000341,20]
[424868309,1781217050000,-6076.0,0.00034185,2]
[424868318,1781217050000,-482.22,0.00034201,2]
[424868310,1781217050000,-573.23,0.00034191,2]
[424868317,1781217050000,-644.05,0.00034201,2]
[424868315,1781217050000,-482.22,0.00034201,2]
[424868314,1781217050000,-166.0,0.00034199,11]
[424868313,1781217050000,-573.22,0.00034192,2]
[424868312,1781217050000,-396.12,0.00034192,2]
[424868316,1781217050000,-644.05,0.00034201,2]
[424868319,1781217050000,-396.13,0.00034201,2]
[424868320,1781217050000,-575.42,0.00034201,2]
[424868321,1781217050000,-396.12,0.00034201,2]